[Event "Live Chess"]
[Site "Chess.com"]
[Date "2023.05.20"]
[Round "-"]
[White "Salpingidis"]
[Black "ACx04"]
[Result "1-0"]
[WhiteElo "2309"]
[BlackElo "402"]
[TimeControl "300"]
[EndTime "11:37:57 PDT"]
[Termination "Salpingidis won by checkmate"]

1. d4 {[%clk 0:04:55.5]} 1... d5 {[%clk 0:04:58.1]} 2. c4 {[%clk 0:04:53.2]}
2... dxc4 {[%clk 0:04:56]} 3. Nc3 {[%clk 0:04:53.1]} 3... b5 {[%clk 0:04:53.9]}
4. Nxb5 {[%clk 0:04:45.9]} 4... c6 {[%clk 0:04:52]} 5. Nc3 {[%clk 0:04:35.6]}
5... Ba6 {[%clk 0:04:48.7]} 6. e4 {[%clk 0:04:33]} 6... e6 {[%clk 0:04:47.1]} 7.
Nf3 {[%clk 0:04:31.1]} 7... Bd6 {[%clk 0:04:45.8]} 8. Be2 {[%clk 0:04:30.1]}
8... f6 {[%clk 0:04:44.6]} 9. O-O {[%clk 0:04:29.5]} 9... f5 {[%clk 0:04:43.6]}
10. exf5 {[%clk 0:04:26.1]} 10... exf5 {[%clk 0:04:42.7]} 11. Re1 {[%clk
0:04:25.8]} 11... Qc7 {[%clk 0:04:40.6]} 12. Bxc4+ {[%clk 0:04:24.5]} 12... Ne7
{[%clk 0:04:36.5]} 13. Bb3 {[%clk 0:04:21.1]} 13... Nd7 {[%clk 0:04:29]} 14. d5
{[%clk 0:04:19.1]} 14... cxd5 {[%clk 0:04:27.7]} 15. Nxd5 {[%clk 0:04:19]} 15...
Qb8 {[%clk 0:04:18.2]} 16. Bg5 {[%clk 0:04:15.3]} 16... Bxh2+ {[%clk 0:04:13.7]}
17. Nxh2 {[%clk 0:04:12.4]} 17... h6 {[%clk 0:04:10.8]} 18. Rxe7+ {[%clk
0:04:10.9]} 18... Kd8 {[%clk 0:04:05.8]} 19. Nb6 {[%clk 0:04:05.4]} 19... Qxb6
{[%clk 0:04:03]} 20. Qxd7# {[%clk 0:04:04.5]} 1-0

[Event "Live Chess"]
[Site "Chess.com"]
[Date "2023.05.20"]
[Round "-"]
[White "Reggie016"]
[Black "luckywookie"]
[Result "0-1"]
[WhiteElo "1073"]
[BlackElo "744"]
[TimeControl "300"]
[EndTime "11:38:03 PDT"]
[Termination "luckywookie won by resignation"]

1. e4 {[%clk 0:04:58.7]} 1... c6 {[%clk 0:04:58.2]} 2. d4 {[%clk 0:04:57.9]}
2... d5 {[%clk 0:04:57.2]} 3. Nc3 {[%clk 0:04:57.7]} 3... dxe4 {[%clk
0:04:51.1]} 4. Nxe4 {[%clk 0:04:57.6]} 4... Nf6 {[%clk 0:04:49]} 5. Nxf6+ {[%clk
0:04:56.9]} 5... exf6 {[%clk 0:04:48]} 6. c3 {[%clk 0:04:56.2]} 6... Bd6 {[%clk
0:04:43.8]} 7. Bd3 {[%clk 0:04:55.6]} 7... O-O {[%clk 0:04:42.5]} 8. Qc2 {[%clk
0:04:53.7]} 8... g6 {[%clk 0:04:33.4]} 9. Ne2 {[%clk 0:04:52.8]} 9... Nd7 {[%clk
0:04:32.1]} 10. Be3 {[%clk 0:04:51.8]} 10... Re8 {[%clk 0:04:30.8]} 11. O-O-O
{[%clk 0:04:50.7]} 11... Nf8 {[%clk 0:04:29.4]} 12. h4 {[%clk 0:04:47.4]} 12...
Be6 {[%clk 0:04:28]} 13. h5 {[%clk 0:04:39.1]} 13... Qc7 {[%clk 0:04:13.5]} 14.
hxg6 {[%clk 0:04:33.5]} 14... fxg6 {[%clk 0:04:11.8]} 15. Bh6 {[%clk 0:04:28.3]}
15... a5 {[%clk 0:04:00.6]} 16. Bxf8 {[%clk 0:04:26.7]} 16... Bxf8 {[%clk
0:03:53.9]} 17. Bxg6 {[%clk 0:04:03.1]} 17... hxg6 {[%clk 0:03:50.1]} 18. Qxg6+
{[%clk 0:04:01]} 18... Qg7 {[%clk 0:03:48]} 19. Qh5 {[%clk 0:03:43.7]} 19...
Qg5+ {[%clk 0:03:33.5]} 20. Qxg5+ {[%clk 0:03:38.2]} 20... fxg5 {[%clk
0:03:31.9]} 21. Rh5 {[%clk 0:03:37]} 21... Be7 {[%clk 0:03:27.3]} 22. Rdh1
{[%clk 0:03:35.4]} 22... Bg4 {[%clk 0:03:11.6]} 23. Rh8+ {[%clk 0:03:31.1]}
23... Kf7 {[%clk 0:03:06.7]} 24. R8h7+ {[%clk 0:03:30.2]} 24... Kf8 {[%clk
0:03:03]} 25. Ng3 {[%clk 0:03:29.1]} 25... Rad8 {[%clk 0:02:34.1]} 26. Ne4
{[%clk 0:03:26.9]} 26... Bf5 {[%clk 0:02:27.6]} 27. Rh8+ {[%clk 0:03:13.7]}
27... Kf7 {[%clk 0:02:22.4]} 28. Nxg5+ {[%clk 0:02:50.5]} 28... Bxg5+ {[%clk
0:02:19.8]} 0-1

[Event "Live Chess"]
[Site "Chess.com"]
[Date "2023.05.20"]
[Round "-"]
[White "onemoretime1975"]
[Black "ethiebear"]
[Result "1-0"]
[WhiteElo "1919"]
[BlackElo "806"]
[TimeControl "300"]
[EndTime "11:38:11 PDT"]
[Termination "onemoretime1975 won by checkmate"]

1. e4 {[%clk 0:04:58.2]} 1... e5 {[%clk 0:04:54.9]} 2. Nf3 {[%clk 0:04:56.9]}
2... Nc6 {[%clk 0:04:52.3]} 3. Bc4 {[%clk 0:04:55.6]} 3... Nd4 {[%clk
0:04:50.8]} 4. d3 {[%clk 0:04:50.1]} 4... Bc5 {[%clk 0:04:43]} 5. O-O {[%clk
0:04:46.1]} 5... Qf6 {[%clk 0:04:27.6]} 6. Nxd4 {[%clk 0:04:39.4]} 6... Bxd4
{[%clk 0:04:25.2]} 7. Be3 {[%clk 0:04:38.6]} 7... Qg6 {[%clk 0:04:20.2]} 8. Bxd4
{[%clk 0:04:35.9]} 8... exd4 {[%clk 0:04:17.3]} 9. f4 {[%clk 0:04:34.2]} 9... d6
{[%clk 0:04:13.9]} 10. f5 {[%clk 0:04:32.5]} 10... Qg5 {[%clk 0:04:01.7]} 11.
Qc1 {[%clk 0:04:28.9]} 11... f6 {[%clk 0:03:58]} 12. Qxg5 {[%clk 0:04:25.6]}
12... fxg5 {[%clk 0:03:56.6]} 13. Nd2 {[%clk 0:04:23.9]} 13... g6 {[%clk
0:03:54.4]} 14. fxg6 {[%clk 0:04:19.3]} 14... hxg6 {[%clk 0:03:52.8]} 15. Nf3
{[%clk 0:04:18.8]} 15... Bg4 {[%clk 0:03:42.9]} 16. Nxd4 {[%clk 0:04:08.8]}
16... O-O-O {[%clk 0:03:32.9]} 17. Be6+ {[%clk 0:04:06]} 17... Bxe6 {[%clk
0:03:24]} 18. Nxe6 {[%clk 0:04:04.7]} 18... Re8 {[%clk 0:03:21.4]} 19. Nxg5
{[%clk 0:04:03.2]} 19... Re5 {[%clk 0:03:16.4]} 20. Nf7 {[%clk 0:04:01.2]} 20...
Reh5 {[%clk 0:03:07.9]} 21. Nxh8 {[%clk 0:03:59.4]} 21... Rxh8 {[%clk
0:03:06.4]} 22. Rf8+ {[%clk 0:03:57.9]} 22... Kd7 {[%clk 0:03:00.4]} 23. Raf1
{[%clk 0:03:57.4]} 23... Ke7 {[%clk 0:02:56.1]} 24. R1f7+ {[%clk 0:03:55.6]}
24... Ke6 {[%clk 0:02:51.1]} 25. Rg7 {[%clk 0:03:54.3]} 25... g5 {[%clk
0:02:42.5]} 26. Rfxg8 {[%clk 0:03:50.8]} 26... Rxg8 {[%clk 0:02:37.7]} 27. Rxg8
{[%clk 0:03:49.1]} 27... Ke5 {[%clk 0:02:36]} 28. Rxg5+ {[%clk 0:03:47.1]} 28...
Kf4 {[%clk 0:02:35.1]} 29. Rf5+ {[%clk 0:03:45.5]} 29... Ke3 {[%clk 0:02:30.9]}
30. Rf7 {[%clk 0:03:41.3]} 30... Ke2 {[%clk 0:02:30.2]} 31. Rxc7 {[%clk
0:03:39.6]} 31... Ke1 {[%clk 0:02:30]} 32. Rxb7 {[%clk 0:03:38.1]} 32... Kd1
{[%clk 0:02:29.8]} 33. Rxa7 {[%clk 0:03:37.4]} 33... Ke1 {[%clk 0:02:29.6]} 34.
Rd7 {[%clk 0:03:36.6]} 34... Kd1 {[%clk 0:02:29.1]} 35. Rxd6 {[%clk 0:03:36.1]}
35... Ke1 {[%clk 0:02:28.1]} 36. c4 {[%clk 0:03:35.2]} 36... Kd1 {[%clk
0:02:27.8]} 37. c5 {[%clk 0:03:34.3]} 37... Ke1 {[%clk 0:02:27.6]} 38. c6 {[%clk
0:03:33.5]} 38... Kd1 {[%clk 0:02:26.8]} 39. c7 {[%clk 0:03:32.6]} 39... Ke1
{[%clk 0:02:26.5]} 40. c8=Q {[%clk 0:03:30.9]} 40... Kd1 {[%clk 0:02:25.9]} 41.
a4 {[%clk 0:03:29.2]} 41... Kd2 {[%clk 0:02:20.2]} 42. a5 {[%clk 0:03:27.8]}
42... Ke3 {[%clk 0:02:20]} 43. a6 {[%clk 0:03:26.6]} 43... Kf4 {[%clk
0:02:17.8]} 44. a7 {[%clk 0:03:25.6]} 44... Ke5 {[%clk 0:02:17.5]} 45. Re6+
{[%clk 0:03:21.8]} 45... Kd4 {[%clk 0:02:10.4]} 46. a8=Q {[%clk 0:03:19.5]}
46... Kxd3 {[%clk 0:02:08.7]} 47. Qc3+ {[%clk 0:03:16.4]} 47... Ke2 {[%clk
0:02:04]} 48. Qa6+ {[%clk 0:03:14.8]} 48... Kd1 {[%clk 0:01:58.5]} 49. Qf1#
{[%clk 0:03:13.5]} 1-0

[Event "Live Chess"]
[Site "Chess.com"]
[Date "2023.05.20"]
[Round "-"]
[White "Pablo_dmp"]
[Black "ameetghasi100"]
[Result "0-1"]
[WhiteElo "1856"]
[BlackElo "2722"]
[TimeControl "300"]
[EndTime "11:38:13 PDT"]
[Termination "ameetghasi100 won on time"]

1. e4 {[%clk 0:04:59.2]} 1... c5 {[%clk 0:04:58.6]} 2. a3 {[%clk 0:04:57.2]}
2... d6 {[%clk 0:04:57.5]} 3. d4 {[%clk 0:04:52.1]} 3... Nc6 {[%clk 0:04:57.4]}
4. dxc5 {[%clk 0:04:48]} 4... dxc5 {[%clk 0:04:57.3]} 5. Qxd8+ {[%clk
0:04:45.4]} 5... Nxd8 {[%clk 0:04:56.5]} 6. Bb5+ {[%clk 0:04:40.3]} 6... Bd7
{[%clk 0:04:56.4]} 7. Nc3 {[%clk 0:04:37.3]} 7... Nc6 {[%clk 0:04:55]} 8. Be3
{[%clk 0:04:31.8]} 8... e6 {[%clk 0:04:53.2]} 9. Rd1 {[%clk 0:04:27.2]} 9... a6
{[%clk 0:04:52.3]} 10. Bxc6 {[%clk 0:04:24.9]} 10... Bxc6 {[%clk 0:04:52.2]} 11.
Nf3 {[%clk 0:04:23.4]} 11... f6 {[%clk 0:04:50.1]} 12. O-O {[%clk 0:04:15.5]}
12... g5 {[%clk 0:04:45.9]} 13. Ne1 {[%clk 0:04:01.5]} 13... Nh6 {[%clk
0:04:39.7]} 14. Nd3 {[%clk 0:03:58]} 14... b6 {[%clk 0:04:38.4]} 15. f4 {[%clk
0:03:49.1]} 15... Ng4 {[%clk 0:04:31.7]} 16. Bc1 {[%clk 0:03:38.2]} 16... c4
{[%clk 0:04:28.8]} 17. Nb4 {[%clk 0:03:34.8]} 17... Bc5+ {[%clk 0:04:26.7]} 18.
Kh1 {[%clk 0:03:31.2]} 18... Bb7 {[%clk 0:04:26.6]} 19. Rd2 {[%clk 0:03:15.8]}
19... h5 {[%clk 0:04:19.8]} 20. fxg5 {[%clk 0:03:13.8]} 20... fxg5 {[%clk
0:04:15.9]} 21. Re2 {[%clk 0:03:08.4]} 21... Rd8 {[%clk 0:04:11.2]} 22. Bxg5
{[%clk 0:03:05.9]} 22... Rd7 {[%clk 0:04:08.7]} 23. Nba2 {[%clk 0:02:54.4]}
23... b5 {[%clk 0:03:59.4]} 24. h3 {[%clk 0:02:52.6]} 24... Bd4 {[%clk
0:03:44.8]} 25. g3 {[%clk 0:02:36.2]} 25... Ne5 {[%clk 0:03:41.6]} 26. Bf4
{[%clk 0:02:17.7]} 26... Ng6 {[%clk 0:03:37.7]} 27. Be3 {[%clk 0:02:12.4]} 27...
Be5 {[%clk 0:03:34.8]} 28. Bf4 {[%clk 0:02:09.8]} 28... O-O {[%clk 0:03:28.1]}
29. Ref2 {[%clk 0:02:03.9]} 29... Bd4 {[%clk 0:03:20.6]} 30. Rf3 {[%clk
0:01:56.8]} 30... Rdf7 {[%clk 0:03:18.5]} 31. Kg2 {[%clk 0:01:53.2]} 31... e5
{[%clk 0:02:20.3]} 32. Bh6 {[%clk 0:01:49]} 32... Rxf3 {[%clk 0:02:19.9]} 33.
Rxf3 {[%clk 0:01:47.9]} 33... Rxf3 {[%clk 0:02:18.2]} 34. Kxf3 {[%clk
0:01:47.8]} 34... Bc8 {[%clk 0:02:16.4]} 35. h4 {[%clk 0:01:36.6]} 35... Bg4+
{[%clk 0:01:57.3]} 36. Kg2 {[%clk 0:01:32.6]} 36... Ne7 {[%clk 0:01:55.1]} 37.
Bg5 {[%clk 0:01:30.1]} 37... Nc6 {[%clk 0:01:30]} 38. Nb4 {[%clk 0:01:18.9]}
38... Nxb4 {[%clk 0:01:28.2]} 39. axb4 {[%clk 0:01:18.8]} 39... Kf7 {[%clk
0:01:25.6]} 40. Bd8 {[%clk 0:01:12.9]} 40... Ke6 {[%clk 0:01:21.3]} 41. Bg5
{[%clk 0:00:49.1]} 41... Kd6 {[%clk 0:01:17.5]} 42. Kf1 {[%clk 0:00:38.8]} 42...
Bf3 {[%clk 0:01:15.8]} 43. Ke1 {[%clk 0:00:34.5]} 43... Kc6 {[%clk 0:01:13.9]}
44. Kd2 {[%clk 0:00:32.6]} 44... Bf2 {[%clk 0:01:11.7]} 45. Nd5 {[%clk
0:00:23.6]} 45... Bxe4 {[%clk 0:01:08.6]} 46. Nf6 {[%clk 0:00:22.7]} 46... Bg6
{[%clk 0:01:07.1]} 47. c3 {[%clk 0:00:20]} 47... Bxg3 {[%clk 0:01:05.9]} 48. Ke3
{[%clk 0:00:19]} 48... Bh2 {[%clk 0:00:57.6]} 49. Ne4 {[%clk 0:00:15.9]} 49...
Kd5 {[%clk 0:00:56]} 50. Nc5 {[%clk 0:00:14.2]} 50... Bg1+ {[%clk 0:00:51.2]}
51. Kd2 {[%clk 0:00:11.9]} 51... a5 {[%clk 0:00:49.7]} 52. Be3 {[%clk
0:00:10.2]} 52... Bh2 {[%clk 0:00:37.7]} 53. Nb7 {[%clk 0:00:06.7]} 53... a4
{[%clk 0:00:33.4]} 54. Nc5 {[%clk 0:00:04.3]} 54... Bg3 {[%clk 0:00:29.9]} 55.
Nd7 {[%clk 0:00:02.6]} 55... Bxh4 {[%clk 0:00:27.9]} 56. Nf6+ {[%clk 0:00:01.7]}
56... Bxf6 {[%clk 0:00:26.2]} 0-1

[Event "Live Chess"]
[Site "Chess.com"]
[Date "2023.05.20"]
[Round "-"]
[White "BigDom87"]
[Black "wot-not"]
[Result "0-1"]
[WhiteElo "1257"]
[BlackElo "1467"]
[TimeControl "300"]
[EndTime "11:38:16 PDT"]
[Termination "wot-not won on time"]

1. d4 {[%clk 0:04:52.8]} 1... Nf6 {[%clk 0:04:56.5]} 2. Nf3 {[%clk 0:04:50.8]}
2... d6 {[%clk 0:04:55.5]} 3. c4 {[%clk 0:04:48.4]} 3... Bg4 {[%clk 0:04:55.1]}
4. Nc3 {[%clk 0:04:43.5]} 4... Bxf3 {[%clk 0:04:51.1]} 5. exf3 {[%clk
0:04:41.7]} 5... Nbd7 {[%clk 0:04:50.3]} 6. Bd3 {[%clk 0:04:40.2]} 6... g6
{[%clk 0:04:47.4]} 7. Be3 {[%clk 0:04:37.6]} 7... Bg7 {[%clk 0:04:46.6]} 8. Qd2
{[%clk 0:04:36]} 8... O-O {[%clk 0:04:45.8]} 9. O-O-O {[%clk 0:04:32]} 9... c5
{[%clk 0:04:45]} 10. d5 {[%clk 0:04:27]} 10... Ne5 {[%clk 0:04:40.7]} 11. Bh6
{[%clk 0:04:15.3]} 11... Nxd3+ {[%clk 0:04:38.7]} 12. Qxd3 {[%clk 0:03:55.4]}
12... Bxh6+ {[%clk 0:04:35.4]} 13. Kb1 {[%clk 0:03:46.8]} 13... a6 {[%clk
0:04:30.7]} 14. g4 {[%clk 0:03:43.6]} 14... Bg7 {[%clk 0:04:27.8]} 15. h4 {[%clk
0:03:41.2]} 15... Nd7 {[%clk 0:04:26.7]} 16. h5 {[%clk 0:03:39.5]} 16... Ne5
{[%clk 0:04:23.2]} 17. Qe4 {[%clk 0:03:09.9]} 17... b5 {[%clk 0:04:10.6]} 18.
hxg6 {[%clk 0:03:02.9]} 18... fxg6 {[%clk 0:04:07.4]} 19. g5 {[%clk 0:02:50.1]}
19... bxc4 {[%clk 0:03:59.7]} 20. Qh4 {[%clk 0:02:47.2]} 20... Kf7 {[%clk
0:03:43.9]} 21. Qh3 {[%clk 0:02:16.9]} 21... Nd3 {[%clk 0:03:29.8]} 22. Qe6+
{[%clk 0:02:11.7]} 22... Ke8 {[%clk 0:03:27.4]} 23. Rxh7 {[%clk 0:02:05]} 23...
Bxc3 {[%clk 0:02:50.1]} 24. Qxg6+ {[%clk 0:01:42.9]} 24... Kd7 {[%clk
0:02:46.2]} 25. Qe6+ {[%clk 0:01:41.2]} 25... Kc7 {[%clk 0:02:44.6]} 26. Rxe7+
{[%clk 0:01:39.7]} 26... Kb8 {[%clk 0:02:27.6]} 27. Rd7 {[%clk 0:01:01.2]} 27...
Qb6 {[%clk 0:02:12.8]} 28. Qxd6+ {[%clk 0:00:56.7]} 28... Qxd6 {[%clk
0:02:11.5]} 29. Rxd6 {[%clk 0:00:55.8]} 29... Bd4 {[%clk 0:01:55.3]} 30. b3
{[%clk 0:00:25]} 30... Nxf2 {[%clk 0:01:47.3]} 31. Re1 {[%clk 0:00:20.2]} 31...
cxb3 {[%clk 0:01:41.6]} 32. axb3 {[%clk 0:00:17.9]} 32... Ra7 {[%clk 0:01:22.6]}
33. Ree6 {[%clk 0:00:15]} 33... c4 {[%clk 0:01:15.6]} 34. bxc4 {[%clk
0:00:08.7]} 34... Rb7+ {[%clk 0:01:14.5]} 35. Ka2 {[%clk 0:00:04.6]} 35... Rb2+
{[%clk 0:01:11.8]} 36. Ka3 {[%clk 0:00:03.8]} 36... Rb7 {[%clk 0:01:05.8]} 37.
Rxa6 {[%clk 0:00:02]} 37... Rc8 {[%clk 0:00:59.1]} 0-1

[Event "Live Chess"]
[Site "Chess.com"]
[Date "2023.05.20"]
[Round "-"]
[White "aliciabutteriss"]
[Black "PantherCal"]
[Result "0-1"]
[WhiteElo "574"]
[BlackElo "1807"]
[TimeControl "300"]
[EndTime "11:38:18 PDT"]
[Termination "PantherCal won by resignation"]

1. e4 {[%clk 0:04:59.1]} 1... d5 {[%clk 0:04:55.2]} 2. Nc3 {[%clk 0:04:52.6]}
2... dxe4 {[%clk 0:04:54]} 3. Nxe4 {[%clk 0:04:51.5]} 3... Nf6 {[%clk
0:04:53.9]} 4. d3 {[%clk 0:04:38.7]} 4... Nxe4 {[%clk 0:04:50.9]} 5. dxe4 {[%clk
0:04:35.2]} 5... Qxd1+ {[%clk 0:04:50.8]} 6. Kxd1 {[%clk 0:04:34.3]} 6... Nc6
{[%clk 0:04:50.4]} 7. Bf4 {[%clk 0:04:30.2]} 7... e5 {[%clk 0:04:50.3]} 8. Be3
{[%clk 0:04:27]} 8... Be6 {[%clk 0:04:50.2]} 9. Nf3 {[%clk 0:04:21.1]} 9...
O-O-O+ {[%clk 0:04:50.1]} 10. Bd3 {[%clk 0:04:17.7]} 10... f6 {[%clk 0:04:46]}
11. Ke2 {[%clk 0:04:11.9]} 11... Bb4 {[%clk 0:04:45.9]} 12. Rad1 {[%clk
0:04:10]} 12... Ba5 {[%clk 0:04:41.3]} 13. Bd2 {[%clk 0:04:03.4]} 13... Bb6
{[%clk 0:04:41.2]} 14. c3 {[%clk 0:03:58.7]} 14... Rd7 {[%clk 0:04:39.6]} 15.
Rhe1 {[%clk 0:03:49]} 15... Rhd8 {[%clk 0:04:39.5]} 16. Kf1 {[%clk 0:03:47.7]}
16... Rxd3 {[%clk 0:04:38]} 17. Nd4 {[%clk 0:03:39.2]} 17... exd4 {[%clk
0:04:36.4]} 18. cxd4 {[%clk 0:03:36.9]} 18... Nxd4 {[%clk 0:04:34.1]} 19. Re3
{[%clk 0:03:21.1]} 19... Nc2 {[%clk 0:04:27.2]} 20. Rxd3 {[%clk 0:03:16.8]}
20... Rxd3 {[%clk 0:04:26.1]} 0-1

[Event "Live Chess"]
[Site "Chess.com"]
[Date "2023.05.20"]
[Round "-"]
[White "mach247"]
[Black "Davidagye"]
[Result "0-1"]
[WhiteElo "1307"]
[BlackElo "1676"]
[TimeControl "300"]
[EndTime "11:38:23 PDT"]
[Termination "Davidagye won on time"]

1. d4 {[%clk 0:04:58.4]} 1... Nf6 {[%clk 0:04:58.7]} 2. Nc3 {[%clk 0:04:57.4]}
2... e6 {[%clk 0:04:56.6]} 3. Bf4 {[%clk 0:04:55.7]} 3... d5 {[%clk 0:04:55.3]}
4. Nb5 {[%clk 0:04:54.8]} 4... Na6 {[%clk 0:04:53]} 5. e3 {[%clk 0:04:54.5]}
5... c5 {[%clk 0:04:49.8]} 6. Nf3 {[%clk 0:04:30.7]} 6... c4 {[%clk 0:04:36.1]}
7. Nc3 {[%clk 0:04:11.4]} 7... Bb4 {[%clk 0:04:32.8]} 8. a3 {[%clk 0:04:10.4]}
8... Bxc3+ {[%clk 0:04:30.7]} 9. bxc3 {[%clk 0:04:10.3]} 9... Qa5 {[%clk
0:04:29.7]} 10. Be2 {[%clk 0:03:17.1]} 10... Qxc3+ {[%clk 0:04:00.8]} 11. Kf1
{[%clk 0:03:13.7]} 11... Ne4 {[%clk 0:03:51.5]} 12. Rb1 {[%clk 0:02:54.7]} 12...
Qa5 {[%clk 0:03:37.4]} 13. Qe1 {[%clk 0:02:17.5]} 13... Qxa3 {[%clk 0:03:34.1]}
14. Be5 {[%clk 0:01:58.1]} 14... Nb4 {[%clk 0:03:27.3]} 15. Qxb4 {[%clk
0:01:46.6]} 15... Qxb4 {[%clk 0:03:22]} 16. Rxb4 {[%clk 0:01:45.2]} 16... a6
{[%clk 0:03:19.6]} 17. Ke1 {[%clk 0:01:16.2]} 17... b5 {[%clk 0:03:12.9]} 18.
Nd2 {[%clk 0:01:14.5]} 18... Bd7 {[%clk 0:03:05.9]} 19. Nxe4 {[%clk 0:01:13.3]}
19... dxe4 {[%clk 0:03:00.9]} 20. f4 {[%clk 0:01:11.9]} 20... a5 {[%clk
0:02:57.5]} 21. Rb2 {[%clk 0:01:03.6]} 21... c3 {[%clk 0:02:20]} 22. Rb3 {[%clk
0:00:46.2]} 22... Rc8 {[%clk 0:02:12.7]} 23. Bxb5 {[%clk 0:00:42.8]} 23... Bxb5
{[%clk 0:02:08.6]} 24. Rxb5 {[%clk 0:00:42.7]} 24... Ra8 {[%clk 0:02:07.5]} 25.
Ke2 {[%clk 0:00:36.7]} 25... a4 {[%clk 0:02:06.9]} 26. Ra1 {[%clk 0:00:35.7]}
26... a3 {[%clk 0:02:06.1]} 27. Rb3 {[%clk 0:00:33.4]} 27... O-O {[%clk
0:02:05]} 28. Rbxa3 {[%clk 0:00:32.4]} 28... Rac8 {[%clk 0:02:00.8]} 29. Rb3
{[%clk 0:00:30.3]} 29... f6 {[%clk 0:01:59.9]} 30. Bd6 {[%clk 0:00:28.2]} 30...
Rfd8 {[%clk 0:01:58.8]} 31. Bb4 {[%clk 0:00:24.6]} 31... e5 {[%clk 0:01:55.2]}
32. fxe5 {[%clk 0:00:21.1]} 32... fxe5 {[%clk 0:01:53.7]} 33. Rxc3 {[%clk
0:00:17.8]} 33... exd4 {[%clk 0:01:51]} 34. Rxc8 {[%clk 0:00:16.7]} 34... Rxc8
{[%clk 0:01:49.4]} 35. exd4 {[%clk 0:00:08.4]} 35... Rxc2+ {[%clk 0:01:48.6]}
36. Ke3 {[%clk 0:00:07.4]} 36... Rxg2 {[%clk 0:01:48.2]} 37. h4 {[%clk
0:00:05.6]} 37... Rh2 {[%clk 0:01:47.3]} 38. Kxe4 {[%clk 0:00:04.5]} 38... Rxh4+
{[%clk 0:01:46.7]} 39. Kd5 {[%clk 0:00:03]} 39... Rg4 {[%clk 0:01:45.8]} 0-1

[Event "Live Chess"]
[Site "Chess.com"]
[Date "2023.05.20"]
[Round "-"]
[White "WelshTiger"]
[Black "lucaskk818"]
[Result "1-0"]
[WhiteElo "2432"]
[BlackElo "1895"]
[TimeControl "300"]
[EndTime "11:38:23 PDT"]
[Termination "WelshTiger won by resignation"]

1. e4 {[%clk 0:04:57.7]} 1... e6 {[%clk 0:04:58.7]} 2. Nf3 {[%clk 0:04:54.3]}
2... d5 {[%clk 0:04:58]} 3. e5 {[%clk 0:04:53.8]} 3... c5 {[%clk 0:04:56.6]} 4.
a3 {[%clk 0:04:52.7]} 4... Nc6 {[%clk 0:04:55.6]} 5. b4 {[%clk 0:04:49.6]} 5...
cxb4 {[%clk 0:04:53.7]} 6. axb4 {[%clk 0:04:48.8]} 6... Bxb4 {[%clk 0:04:49.4]}
7. c3 {[%clk 0:04:44.8]} 7... Be7 {[%clk 0:04:48.6]} 8. d4 {[%clk 0:04:43.5]}
8... Qc7 {[%clk 0:04:36]} 9. Bd3 {[%clk 0:04:41.7]} 9... a6 {[%clk 0:04:31.1]}
10. O-O {[%clk 0:04:40.3]} 10... h6 {[%clk 0:04:19.7]} 11. Na3 {[%clk
0:04:37.8]} 11... Bd7 {[%clk 0:04:08.2]} 12. Nb5 {[%clk 0:04:33.6]} 12... Qb6
{[%clk 0:04:00.4]} 13. Nd6+ {[%clk 0:04:32.5]} 13... Bxd6 {[%clk 0:03:59.9]} 14.
exd6 {[%clk 0:04:32.4]} 14... Nf6 {[%clk 0:03:42.2]} 15. Ba3 {[%clk 0:04:30.1]}
15... Rc8 {[%clk 0:03:39]} 16. Qe2 {[%clk 0:04:21.7]} 16... Qa7 {[%clk
0:03:26.1]} 17. Ne5 {[%clk 0:04:13.6]} 17... Na5 {[%clk 0:03:07.3]} 18. Bc5
{[%clk 0:04:11.4]} 18... b6 {[%clk 0:03:05.7]} 19. Bb4 {[%clk 0:04:10.9]} 19...
Nc4 {[%clk 0:03:00.9]} 20. Nxc4 {[%clk 0:04:03.4]} 20... dxc4 {[%clk 0:03:00.8]}
21. Bxc4 {[%clk 0:04:02.8]} 21... b5 {[%clk 0:02:54.4]} 22. Bxb5 {[%clk
0:04:01]} 22... Bxb5 {[%clk 0:02:46.4]} 23. Qxb5+ {[%clk 0:04:00.1]} 23... axb5
{[%clk 0:02:45.8]} 24. Rxa7 {[%clk 0:03:59.2]} 24... Nd7 {[%clk 0:02:18.3]} 25.
Rfa1 {[%clk 0:03:49.6]} 25... Nb6 {[%clk 0:02:13.5]} 26. Rb7 {[%clk 0:03:45.8]}
26... Nd7 {[%clk 0:02:09.9]} 27. Raa7 {[%clk 0:03:44]} 1-0

[Event "Live Chess"]
[Site "Chess.com"]
[Date "2023.05.20"]
[Round "-"]
[White "noobsmoker24"]
[Black "viktorskliarov"]
[Result "0-1"]
[WhiteElo "1379"]
[BlackElo "2650"]
[TimeControl "300"]
[EndTime "11:38:29 PDT"]
[Termination "viktorskliarov won by checkmate"]

1. e4 {[%clk 0:04:59.6]} 1... c5 {[%clk 0:04:58.4]} 2. Nf3 {[%clk 0:04:57.9]}
2... Nc6 {[%clk 0:04:57.5]} 3. d4 {[%clk 0:04:56.6]} 3... cxd4 {[%clk
0:04:54.1]} 4. Nxd4 {[%clk 0:04:56.5]} 4... Nf6 {[%clk 0:04:53]} 5. Nc3 {[%clk
0:04:50.6]} 5... e5 {[%clk 0:04:51.5]} 6. Ndb5 {[%clk 0:04:46]} 6... d6 {[%clk
0:04:46.9]} 7. Be3 {[%clk 0:04:43.6]} 7... a6 {[%clk 0:04:44]} 8. Na3 {[%clk
0:04:42.8]} 8... b5 {[%clk 0:04:43.2]} 9. Nd5 {[%clk 0:04:42.1]} 9... Nxd5
{[%clk 0:04:40.9]} 10. exd5 {[%clk 0:04:40.7]} 10... Ne7 {[%clk 0:04:38.4]} 11.
c4 {[%clk 0:04:38]} 11... Nf5 {[%clk 0:04:30.6]} 12. Qd2 {[%clk 0:04:21.7]}
12... Nxe3 {[%clk 0:04:28.1]} 13. Qxe3 {[%clk 0:04:20.1]} 13... b4 {[%clk
0:04:15.9]} 14. Nc2 {[%clk 0:04:19]} 14... a5 {[%clk 0:04:14.6]} 15. Be2 {[%clk
0:04:03.5]} 15... Be7 {[%clk 0:04:13.2]} 16. O-O {[%clk 0:04:00.5]} 16... O-O
{[%clk 0:04:12.4]} 17. a3 {[%clk 0:04:00]} 17... Bg5 {[%clk 0:04:02.5]} 18. Qb3
{[%clk 0:03:11.7]} 18... bxa3 {[%clk 0:03:53.6]} 19. Nxa3 {[%clk 0:03:09.3]}
19... f5 {[%clk 0:03:43.1]} 20. Nb5 {[%clk 0:03:01]} 20... Rf6 {[%clk
0:03:13.5]} 21. Qc3 {[%clk 0:02:58.9]} 21... Rh6 {[%clk 0:03:07.7]} 22. h3
{[%clk 0:02:20.6]} 22... e4 {[%clk 0:02:56.7]} 23. b4 {[%clk 0:02:10]} 23...
axb4 {[%clk 0:02:53.2]} 24. Qxb4 {[%clk 0:02:06.2]} 24... Rb8 {[%clk 0:02:46.7]}
25. Qc3 {[%clk 0:01:35.7]} 25... Bf6 {[%clk 0:02:43.1]} 26. Nd4 {[%clk
0:01:27.3]} 26... Qb6 {[%clk 0:02:34.6]} 27. Rfd1 {[%clk 0:01:23.4]} 27... f4
{[%clk 0:02:23.4]} 28. Rab1 {[%clk 0:01:05.6]} 28... Qxb1 {[%clk 0:02:20.2]} 29.
Rxb1 {[%clk 0:01:01.7]} 29... Rxb1+ {[%clk 0:02:20.1]} 30. Kh2 {[%clk
0:01:00.1]} 30... f3 {[%clk 0:02:19.5]} 31. gxf3 {[%clk 0:00:58]} 31... Be5+
{[%clk 0:02:14.4]} 32. Kg2 {[%clk 0:00:55.3]} 32... Bxh3# {[%clk 0:02:12.6]} 0-1